Cogmind - Beta 13 *** ADVENTURER MODE // 2024.08.05 @ 17:17:48 Player: Gder Result: Destroyed by S-43 Plague with Heavy Machine Gun Performance ------------- Evolutions (8) 4000 Regions Visited (16) 3200 Robots Destroyed (110) 550 Value Destroyed (2606) 2606 Prototype IDs (14) 280 Alien Tech Used (0) 0 Bonus (710) 710 TOTAL SCORE: 11346 Bonus ------- Follower Combat Kills 223 Scanned by Researcher 500 Friendly Fire -13 Cogmind --------- Core Integrity 0/1450 Matter 300/300 Energy 100/100 System Corruption 0% Temperature Cool (0) Movement Core (50) Location -2/Testing Parts ------- > --- POWER (3) -------- (None) > --- PROPULSION (6) --- (None) > --- UTILITY (12) ----- (None) > --- WEAPON (2) ------- (None) > --- INVENTORY (5) ---- Field Propulsion Array Field Propulsion Array Peak State ------------ > --- POWER ------------ Micro Nuclear Core Light Antimatter Reactor Light Quantum Reactor > --- PROPULSION ------- Field Propulsion Array Field Propulsion Array Field Propulsion Array > --- UTILITY ---------- Medium Storage Unit Advanced Weight Redist. System Machine Analyzer Advanced Sensor Array Improved Signal Interpreter Long-range Terrain Scanner Seismic Detector Advanced Melee Analysis Suite Improved Transmission Jammer Hacking Suite Hacking Suite Hacking Suite > --- WEAPON ----------- Compact HERF Cannon Plasma Sword > --- INVENTORY -------- Field Propulsion Array Field Propulsion Array Field Propulsion Array Field Propulsion Array [Rating: 125] Favorites ----------- Power Ion Engine Engine Ion Engine Power Core Light Nuclear Core Reactor Light Antimatter Reactor Propulsion Light Treads Treads Light Treads Flight Unit Improved Flight Unit Utility Terrain Scanner Device Terrain Scanner Storage Large Storage Unit Processor Signal Interpreter Hackware Hacking Suite Protection Layered Light Armor Plating Weapon Light Assault Rifle Energy Cannon Compact HERF Cannon Ballistic Gun Light Assault Rifle Ballistic Cannon Advanced Assault Cannon Launcher Grenade Launcher Special Weapon Improved Remote Datajack Slashing Weapon Plasma Sword Special Melee Weapon Improved Datajack Build | -11 -10 -10 -9 -9 -9 -8 -8 -7 -7 -7 -6 -5 -4 -3 -2 -2 ------- Run | Yrd Mat Min Mat Min Exi Min Mat Fac Low Low Fac Fac Fac Res Res Tes Slots Evolved 16 | . . . 2 . . . 2 2 . . 2 2 2 2 2 . Power 2 | . . . . . . . . . . . . 1 1 . . . Propulsion 4 | . . . . . . . 1 1 . . . 1 1 . . . Utility 10 | . . . 2 . . . 1 1 . . 2 . . 2 2 . Weapon . | . . . . . . . . . . . . . . . . . Parts Attached 114 | 7 6 3 6 4 2 4 8 13 8 . 12 18 10 4 5 4 Power 15 | 1 . 1 . . . . 1 . 1 . 2 4 2 . 2 1 Engine 3 | 1 . 1 . . . . . . . . . . 1 . . . Core 10 | . . . . . . . 1 . 1 . 2 4 1 . 1 . Reactor 2 | . . . . . . . . . . . . . . . 1 1 Propulsion 29 | 2 . . 1 1 . . 2 8 2 . 3 5 5 . . . Treads 6 | 2 . . 1 1 . . 2 . . . . . . . . . Leg . | . . . . . . . . . . . . . . . . . Wheel . | . . . . . . . . . . . . . . . . . Hover . | . . . . . . . . . . . . . . . . . Flight 23 | . . . . . . . . 8 2 . 3 5 5 . . . Utility 42 | 2 4 . 2 1 . 2 3 2 5 . 6 5 2 4 2 2 Device 24 | 1 1 . 1 . . 2 1 1 3 . 3 4 2 1 2 2 Storage 8 | 1 3 . . . . . 2 . . . . . . 2 . . Processor 5 | . . . 1 . . . . . 1 . 2 1 . . . . Hackware 3 | . . . . . . . . 1 . . 1 . . 1 . . Protection 2 | . . . . 1 . . . . 1 . . . . . . . Artifact . | . . . . . . . . . . . . . . . . . Weapon 28 | 2 2 2 3 2 2 2 2 3 . . 1 4 1 . 1 1 Energy Gun . | . . . . . . . . . . . . . . . . . Energy Cannon 2 | . . . . . . . . . . . . . . . 1 1 Ballistic Gun 13 | 2 1 1 2 2 1 1 2 . . . . . 1 . . . Ballistic Cannon 2 | . . . . . . . . . . . . 2 . . . . Launcher 4 | . 1 1 1 . . 1 . . . . . . . . . . Special Weapon 1 | . . . . . . . . . . . . 1 . . . . Impact Weapon . | . . . . . . . . . . . . . . . . . Slashing Weapon 4 | . . . . . . . . 2 . . 1 1 . . . . Piercing Weapon . | . . . . . . . . . . . . . . . . . Special Melee Weapon 2 | . . . . . 1 . . 1 . . . . . . . . Unidentified Prototypes 5 | . . . . . . . . 1 . . . 1 . 1 . 2 Parts Lost 31 | . 1 1 1 3 . . . . 3 . 8 2 1 . 2 9 Power 7 | . . 1 . . . . . . . . 1 1 . . 2 2 Propulsion 7 | . . . 1 . . . . . 1 . 3 1 . . . 1 Utility 11 | . 1 . . 2 . . . . 2 . 2 . . . . 4 Weapon 6 | . . . . 1 . . . . . . 2 . 1 . . 2 Highest Loss Streak 8 | . 1 1 1 2 . . . . 2 . 4 1 1 . 1 8 To Critical Strikes . | . . . . . . . . . . . . . . . . . Average Slot Usage (%) 94 | . 96 99 99 93 88 99 100 97 97 . 89 94 89 83 84 69 Engine 7 | . 14 13 11 11 11 11 6 . . . . . 5 4 3 . Core 2 | . . . . . . . 3 7 6 . 5 6 9 9 4 3 Treads 15 | . 28 28 21 22 22 22 27 . . . . . . . . . Flight 8 | . . . . . . . . 27 29 . 24 28 21 14 13 11 Device 16 | . 11 14 21 14 11 21 27 29 21 . 15 10 10 16 19 19 Storage 7 | . 14 14 11 11 11 11 9 . . . . . . 1 4 3 Processor 9 | . . . 11 11 11 11 9 7 10 . 18 23 20 14 13 8 Hackware 3 | . . . . . . . . 6 7 . 8 11 10 12 13 10 Ballistic Gun 14 | . 27 25 20 21 21 13 18 . . . . . . 4 . . Slashing Weapon 2 | . . . . . . . . 6 7 . 9 4 5 4 4 3 Naked Turns 55 | . . . . . . . . . . . . . . . . 55 Heaviest Build 48 | 14 29 30 31 32 28 31 33 13 16 16 19 23 28 34 48 44 Greatest Support 60 | 40 40 40 40 40 40 40 60 26 21 20 21 25 45 54 54 54 Greatest Overweight (x) 2 | 2 . . 1 . . . . . . . 1 . . . . . Average Overweight (x) . | . . . . . . . . . . . . . . . . . Largest Inventory Capacity 25 | 8 20 15 15 15 15 15 25 15 5 5 5 5 5 10 10 10 Average Capacity 11 | 6 12 15 15 15 15 15 15 5 5 5 5 5 5 7 10 9 Most Carried 15 | 4 11 11 15 15 13 14 15 13 5 4 5 5 5 10 10 9 Average Carried 9 | 2 8 10 12 13 13 12 13 4 4 4 4 2 4 6 9 8 Final Capacity 15 | 8 15 15 15 15 15 15 15 5 5 5 5 5 5 10 10 5 Final Carried 15 | 3 10 11 15 13 13 13 14 5 4 4 2 5 5 10 9 4 Class Distribution -------------------- 40% | Mutant 16% | Scavenger-Skirmisher 9% | Hacker-Ninja 8% | Hacker-Sprinter 7% | Hacker-Scout 7% | Skirmisher 3% | Hacker-Mutant Dominant Class ---------------- Mutant | -10/Materials Mutant | -10/Mines Skirmisher | -9/Materials Mutant | -9/Mines Mutant | -9/Exiles Scavenger-Skirmisher | -8/Mines Scavenger-Skirmisher | -8/Materials Scavenger-Scout | -7/Factory Hacker-Scout | -7/Lower Caves Hacker-Scout | -7/Lower Caves Hacker-Sprinter | -6/Factory Hacker-Sprinter | -5/Factory Hacker-Mutant | -4/Factory Hacker-Ninja | -3/Research Hacker-Ninja | -2/Research Hacker-Ninja | -2/Testing Resources | -11 -10 -10 -9 -9 -9 -8 -8 -7 -7 -7 -6 -5 -4 -3 -2 -2 ----------- Run | Yrd Mat Min Mat Min Exi Min Mat Fac Low Low Fac Fac Fac Res Res Tes Matter Collected 2151 | 282 216 93 144 142 . 83 181 . 174 . 100 352 215 84 20 65 Remotely . | . . . . . . . . . . . . . . . . . Salvage Created 4099 | 89 454 193 283 386 . 54 573 . 353 . 281 683 50 353 82 265 Parts 244 | 9 24 15 18 20 . 8 28 . 11 . 18 57 5 17 4 10 Haulers Intercepted 6 | . 1 . 1 . . . 3 . . . . 1 . . . . Recyclers Shooed 7 | . 1 2 . 1 . . 2 . . . . . . 1 . . Parts Field Recycled . | . . . . . . . . . . . . . . . . . Retrieved Matter . | . . . . . . . . . . . . . . . . . Parts Self-Destructed 10 | . . . . . . . . . 10 . . . . . . . Prevented . | . . . . . . . . . . . . . . . . . Kills | -11 -10 -10 -9 -9 -9 -8 -8 -7 -7 -7 -6 -5 -4 -3 -2 -2 ------- Run | Yrd Mat Min Mat Min Exi Min Mat Fac Low Low Fac Fac Fac Res Res Tes Combat Hostiles Destroyed 63 | . 11 8 4 6 . 3 3 . 8 . 4 10 4 . 1 1 Melee 24 | . . . . . . . . . 8 . 4 8 2 . 1 1 Guns 25 | . 8 3 4 6 . 1 3 . . . . . . . . . Cannons 4 | . . . . . . . . . . . . 2 2 . . . AOE 10 | . 3 5 . . . 2 . . . . . . . . . . Classes Destroyed 17 | 2 5 . 2 1 . . 1 . 1 . . 3 . . . 2 Worker 8 | . . . . . . . 1 . . . 1 5 . 1 . . Builder 7 | . 1 . . 1 . . . . . . 2 2 . . . 1 Tunneler 2 | 1 . . . 1 . . . . . . . . . . . . Hauler 6 | . 1 . 1 . . . 3 . . . . 1 . . . . Recycler 11 | 1 . 1 . 1 . . 4 . . . 1 . . 2 . 1 Mechanic 1 | . . . . . . . . . . . . 1 . . . . Operator 3 | . . . 1 . . . 1 . . . . 1 . . . . Drone 1 | . . . . . . . . . . . . . . . . 1 Watcher 9 | . 2 . 1 . . . 1 . . . 1 3 . 1 . . Swarmer 26 | . 3 5 . . . 2 1 . 3 . 4 4 4 . . . Cutter 4 | . . . . . . . . . . . . 4 . . . . Grunt 23 | . 8 3 3 5 . 1 . . 3 . . . . . . . Duelist 2 | . . . . 1 . . . . 1 . . . . . . . Researcher 1 | . . . . . . . . . . . . . . . . 1 Sentry 4 | . . . 1 . . . 2 . . . . . . . 1 . Hunter 1 | . . . . . . . . . 1 . . . . . . . Programmer 2 | . . . . . . . . . . . . 2 . . . . Best Kill Streak 6 | 2 4 3 4 4 . 2 6 . 4 . 6 5 3 3 1 2 Combat Bots Only 4 | . 4 3 4 2 . 2 2 . 4 . 3 4 3 . 1 1 Max Kills in Single Turn 3 | 1 2 3 2 1 . 2 1 . 1 . 1 1 1 1 1 1 Gunslinging 1 | . . . 1 . . . . . . . . . . . . . Exploded 2 | . 2 2 . . . 2 . . . . . . . . . . Melee 1 | . . . . . . . . . 1 . 1 1 1 . 1 1 Uniques/NPCs Destroyed . | . . . . . . . . . . . . . . . . . Combat | -11 -10 -10 -9 -9 -9 -8 -8 -7 -7 -7 -6 -5 -4 -3 -2 -2 -------- Run | Yrd Mat Min Mat Min Exi Min Mat Fac Low Low Fac Fac Fac Res Res Tes Hostile Shots Fired 564 | . 44 10 37 45 . 6 12 46 38 . 70 37 29 1 22 167 Missed 190 | . 12 2 11 12 . 3 5 25 13 . 31 14 9 1 12 40 Damage Taken 5120 | . 272 72 278 349 . 37 52 132 421 . 410 472 283 73 200 2069 Core 2210 | . 23 36 67 52 . 20 . 63 137 . 130 154 70 . 64 1394 Absorbed by Shields 26 | . . . . . . . . . . . 26 . . . . . Ignored by Resistances 1471 | . 86 23 82 105 . 11 16 40 118 . 126 128 81 19 54 582 Regen/Repaired (Parts) 64 | . . . . . . . . . . . . . 64 . . . Core Remaining (%) 85 | 100 . 76 . . . 65 100 . . 71 84 84 93 100 . . Volleys Fired 209 | 3 38 13 20 33 . 8 33 . . . . 30 26 2 . 3 Largest 2 | 2 2 2 2 2 . 2 2 . . . . 1 1 1 . 1 Hottest 94 | 40 40 40 40 40 . 40 43 . . . . 48 48 23 . 94 Shots Fired 347 | 6 72 23 40 65 . 14 66 . . . . 30 26 2 . 3 Gun 280 | 6 68 20 40 65 . 13 66 . . . . . . 2 . . Cannon 57 | . . . . . . . . . . . . 28 26 . . 3 Launcher 8 | . 4 3 . . . 1 . . . . . . . . . . Special 2 | . . . . . . . . . . . . 2 . . . . Kinetic 334 | 6 68 20 40 65 . 13 66 . . . . 28 26 2 . . Thermal . | . . . . . . . . . . . . . . . . . Explosive 8 | . 4 3 . . . 1 . . . . . . . . . . Electromagnetic 3 | . . . . . . . . . . . . . . . . 3 Robot Hit Streak 22 | 4 19 22 17 19 . 20 18 . . . . 9 3 1 . . Robot Miss Streak 2 | . 2 1 1 1 . 2 2 . . . . 2 1 . . 2 Penetration Max . | . . . . . . . . . . . . . . . . . Secondary Targets 5 | . . . 3 1 . . 1 . . . . . . . . . Max Gunslinging Chain 1 | . . . 1 1 . . 1 . . . . . . . . . Shots Hit Robots 348 | 4 54 18 35 54 6 9 54 1 20 . 24 36 14 7 2 10 Core Hits 164 | 3 27 15 14 25 . 5 24 . 9 . 7 21 5 4 1 4 Critical Kills 3 | . . . . 2 . . 1 . . . . . . . . . Critical Parts Destroyed 2 | . 1 . . . . . 1 . . . . . . . . . Critical Strikes 13 | . 1 . . 2 . . 2 . . . 3 1 2 . . 2 Destroy 5 | . 1 . . 2 . . 2 . . . . . . . . . Blast 2 | . . . . . . . . . . . . . 2 . . . Sever 6 | . . . . . . . . . . . 3 1 . . . 2 Melee Attacks 165 | . . . . . 6 . . 8 20 . 32 58 9 8 5 19 Impact . | . . . . . . . . . . . . . . . . . Slashing 154 | . . . . . . . . 8 15 . 32 58 9 8 5 19 Piercing . | . . . . . . . . . . . . . . . . . Sneak Attacks 24 | . . . . . . . . . 1 . 5 10 1 4 . 3 Combat Hostiles 3 | . . . . . . . . . 1 . . 1 . . . 1 Follow-up Attacks 3 | . . . . . . . . . . . 3 . . . . . Damage Inflicted 8388 | 44 777 460 370 587 . 205 563 51 572 . 1220 1921 490 449 90 589 Guns 2313 | 44 547 172 367 571 . 66 533 . . . . . . 13 . . Cannons 428 | . . . . . . . . . . . . 112 316 . . . Explosions 624 | . 226 275 . . . 123 . . . . . . . . . . Melee 4932 | . . . . . . . . 51 572 . 1220 1809 174 436 90 580 Ramming 91 | . 4 13 3 16 . 16 30 . . . . . . . . 9 Kinetic 2741 | 44 547 172 367 571 . 66 533 . . . . 112 316 13 . . Thermal . | . . . . . . . . . . . . . . . . . Explosive 624 | . 226 275 . . . 123 . . . . . . . . . . Electromagnetic . | . . . . . . . . . . . . . . . . . Impact . | . . . . . . . . . . . . . . . . . Slashing 4932 | . . . . . . . . 51 572 . 1220 1809 174 436 90 580 Piercing . | . . . . . . . . . . . . . . . . . Highest Corruption 3 | . . . . . . . . 3 3 . . 1 . . . . Average Corruption 2 | . . . . . . . . 3 2 . . 1 . . . . Corruption Purged 3 | . . . . . . . . . 3 . . . . . . . Corruption Blocked . | . . . . . . . . . . . . . . . . . Effects 9 | . . . . . . . . 6 3 . . . . . . . Message Errors 4 | . . . . . . . . 2 2 . . . . . . . Matter Fused 3 | . . . . . . . . 2 1 . . . . . . . Heat Flow Errors 1 | . . . . . . . . 1 . . . . . . . . Data Loss (major) 1 | . . . . . . . . 1 . . . . . . . . Overload Shots . | . . . . . . . . . . . . . . . . . Overflow Damage 640 | . 10 . . . . . . 16 . . 191 252 54 6 . 111 Projectiles 1 | . . . . . . . . . . . . . 1 . . . Explosions 10 | . 10 . . . . . . . . . . . . . . . Melee 629 | . . . . . . . . 16 . . 191 252 53 6 . 111 Knockbacks 8 | . . . . 1 . . . . . . . . 6 . . 1 Impact 2 | . . . . 1 . . . . . . . . . . . 1 Kinetic 6 | . . . . . . . . . . . . . 6 . . . Secondary . | . . . . . . . . . . . . . . . . . Self-Inflicted Damage 4 | . . . . . . . . . . . . . . . . 4 Shots . | . . . . . . . . . . . . . . . . . Rammed 20 | . 1 2 1 6 . 2 6 . . . . . . . . 2 Targets Rammed 23 | . 2 2 1 6 . 2 8 . . . . . . . . 2 Kicked . | . . . . . . . . . . . . . . . . . Crushed 3 | . 1 . . . . . 2 . . . . . . . . . Highest Temperature 352 | . 18 9 6 34 . 15 21 83 17 . . 52 352 6 . . Average Temperature 69 | . 7 6 3 11 . 10 15 35 9 . . 13 137 6 . . Received Heat Transfer 900 | . 159 48 105 270 . 24 27 72 159 . . . . . 18 18 Effects 2 | . . . . . . . . . . . . . 2 . . . Shutdowns 1 | . . . . . . . . . . . . . 1 . . . Energy Bleed 1 | . . . . . . . . . . . . . 1 . . . Siege Activations . | . . . . . . . . . . . . . . . . . Robots Corrupted . | . . . . . . . . . . . . . . . . . Combat Hostiles . | . . . . . . . . . . . . . . . . . Parts Fried . | . . . . . . . . . . . . . . . . . Impact Corruptions . | . . . . . . . . . . . . . . . . . Robots Melted . | . . . . . . . . . . . . . . . . . Combat Hostiles . | . . . . . . . . . . . . . . . . . Parts Melted 2 | . . . 2 . . . . . . . . . . . . . Heat Transferred . | . . . . . . . . . . . . . . . . . Parts Sabotaged . | . . . . . . . . . . . . . . . . . Parts Stolen . | . . . . . . . . . . . . . . . . . Parts Stripped . | . . . . . . . . . . . . . . . . . Power Chain Reactions . | . . . . . . . . . . . . . . . . . Alert | -11 -10 -10 -9 -9 -9 -8 -8 -7 -7 -7 -6 -5 -4 -3 -2 -2 ------- Run | Yrd Mat Min Mat Min Exi Min Mat Fac Low Low Fac Fac Fac Res Res Tes Peak Influence 406 | 10 204 115 134 184 . 102 229 205 . . 311 406 283 61 153 271 Initial 170 | . 5 33 19 40 . . 24 89 . . 14 131 170 . 29 74 Average 91 | 4 72 47 64 39 . 89 63 129 . . 127 226 187 31 62 140 Maximum Alert Level 2 | . 1 . . . . . 1 1 . . 1 2 1 . . 1 Low Security (%) 87 | 100 86 100 100 100 . 100 92 81 . . 79 33 83 100 100 76 Level 1 12 | . 13 . . . . . 7 18 . . 20 66 16 . . 23 Level 2 . | . . . . . . . . . . . . . . . . . Level 3 . | . . . . . . . . . . . . . . . . . Level 4 . | . . . . . . . . . . . . . . . . . Level 5 . | . . . . . . . . . . . . . . . . . High Security . | . . . . . . . . . . . . . . . . . Max Security . | . . . . . . . . . . . . . . . . . Squads Dispatched 26 | . 1 1 . 1 . . . 5 . . 2 5 3 . 2 6 Investigation 6 | . 1 1 . . . . . 2 . . . 1 1 . . . Extermination 3 | . . . . . . . . . . . . 1 . . 1 1 Reinforcement 16 | . . . . . . . . 3 . . 2 3 2 . 1 5 Assault 1 | . . . . 1 . . . . . . . . . . . . Garrison . | . . . . . . . . . . . . . . . . . Intercept . | . . . . . . . . . . . . . . . . . Searches Triggered . | . . . . . . . . . . . . . . . . . Construction Impeded . | . . . . . . . . . . . . . . . . . Haulers Reinforced 2 | . . . . . . . . . . . 1 1 . . . . Active Scanning Responses . | . . . . . . . . . . . . . . . . . Cargo Convoy Interrupts . | . . . . . . . . . . . . . . . . . Stealth | -11 -10 -10 -9 -9 -9 -8 -8 -7 -7 -7 -6 -5 -4 -3 -2 -2 --------- Run | Yrd Mat Min Mat Min Exi Min Mat Fac Low Low Fac Fac Fac Res Res Tes Distress Signals 8 | . 3 . . . . . 1 . . . 1 2 . . . 1 Communications Jammed 17 | . . . . . . . . . . . 8 3 2 . . 4 Distress Signals 9 | . . . . . . . . . . . . 3 2 . . 4 Times Spotted 182 | . 14 6 15 14 . 7 16 13 11 . 20 23 8 2 5 28 Peak Tracking Total 16 | . 3 2 4 7 . 4 5 8 4 . 8 5 2 1 5 16 Tactical Retreats 21 | . . . . 2 . . 2 2 2 . 4 5 1 . 1 2 Traps | -11 -10 -10 -9 -9 -9 -8 -8 -7 -7 -7 -6 -5 -4 -3 -2 -2 ------- Run | Yrd Mat Min Mat Min Exi Min Mat Fac Low Low Fac Fac Fac Res Res Tes Traps Triggered 10 | . 2 . . . . . . . . . 2 1 2 1 . 2 Indirectly . | . . . . . . . . . . . . . . . . . Trap Hack Attempts . | . . . . . . . . . . . . . . . . . Triggered . | . . . . . . . . . . . . . . . . . Disarmed . | . . . . . . . . . . . . . . . . . Reprogrammed . | . . . . . . . . . . . . . . . . . Reused . | . . . . . . . . . . . . . . . . . Traps Extracted . | . . . . . . . . . . . . . . . . . Installed . | . . . . . . . . . . . . . . . . . Triggered . | . . . . . . . . . . . . . . . . . Machines | -11 -10 -10 -9 -9 -9 -8 -8 -7 -7 -7 -6 -5 -4 -3 -2 -2 ---------- Run | Yrd Mat Min Mat Min Exi Min Mat Fac Low Low Fac Fac Fac Res Res Tes Machines Disabled 1 | . 1 . . . . . . . . . . . . . . . Max in Single Turn 1 | . 1 . . . . . . . . . . . . . . . Garrison Access 3 | . . . . . . . . . . . . 1 1 . 1 . Machines Repaired . | . . . . . . . . . . . . . . . . . Machines Dismantled . | . . . . . . . . . . . . . . . . . Machines Sabotaged . | . . . . . . . . . . . . . . . . . Overloaded Fab Kills . | . . . . . . . . . . . . . . . . . Hacking | -11 -10 -10 -9 -9 -9 -8 -8 -7 -7 -7 -6 -5 -4 -3 -2 -2 --------- Run | Yrd Mat Min Mat Min Exi Min Mat Fac Low Low Fac Fac Fac Res Res Tes Machines Accessed 45 | . 4 1 3 1 1 . 5 6 . . 3 7 8 1 2 3 Terminals 32 | . 4 . 3 . . . 3 3 . . 2 6 6 1 1 3 Fabricators 2 | . . . . . . . . 1 . . 1 . . . . . Repair Stations 1 | . . . . . . . . . . . . . 1 . . . Recycling Units 4 | . . . . . . . 2 2 . . . . . . . . Scanalyzers . | . . . . . . . . . . . . . . . . . Garrison Access 3 | . . . . . . . . . . . . 1 1 . 1 . Total Hacks 107 | . 10 1 8 1 7 . 11 15 . . 4 17 20 6 3 4 Successful 65 | . 4 1 5 1 7 . 7 10 . . 2 8 15 4 1 . Failed 42 | . 6 . 3 . . . 4 5 . . 2 9 5 2 2 4 Catastrophic 7 | . 1 . . . . . . . . . 1 2 1 . . 2 Database Lockouts . | . . . . . . . . . . . . . . . . . Manual 47 | . 9 . 6 . . . 2 5 . . 3 9 6 1 2 4 Terminals 78 | . 10 . 8 . . . 7 7 . . 3 16 15 6 2 4 Fabricators 4 | . . . . . . . . 3 . . 1 . . . . . Repair Stations 4 | . . . . . . . . . . . . . 4 . . . Recycling Units 9 | . . . . . . . 4 5 . . . . . . . . Scanalyzers . | . . . . . . . . . . . . . . . . . Garrison Access 3 | . . . . . . . . . . . . 1 1 . 1 . Terminal Hacks 48 | . 4 1 5 1 7 . 4 4 . . 1 7 10 4 . . Record 9 | . . . . . 7 . . . . . . 1 1 . . . Robot Analysis 2 | . . . 2 . . . . . . . . . . . . . Prototype ID Bank 3 | . . . 1 . . . 1 . . . . . 1 . . . Open Door 2 | . . 1 . 1 . . . . . . . . . . . . Open DSF 2 | . . . . . . . . 1 . . 1 . . . . . Level Access Points 4 | . . . . . . . 1 . . . . 1 1 1 . . Branch Access Points 5 | . 2 . 2 . . . . 1 . . . . . . . . Alert Level 4 | . . . . . . . . . . . . 1 3 . . . Unreport Threat 2 | . . . . . . . . . . . . 1 1 . . . Locate Traps 2 | . 1 . . . . . 1 . . . . . . . . . Dispatch Records 1 | . . . . . . . . 1 . . . . . . . . Reinforcement Status 1 | . . . . . . . . . . . . . 1 . . . Recall Investigation 1 | . . . . . . . . . . . . 1 . . . . Hauler Manifests 3 | . 1 . . . . . 1 . . . . . . 1 . . Registered Prototypes 1 | . . . . . . . . . . . . . . 1 . . Zone Layout 6 | . . . . . . . . 1 . . . 2 2 1 . . Fabricator Hacks 3 | . . . . . . . . 2 . . 1 . . . . . Network Status 2 | . . . . . . . . 1 . . 1 . . . . . Build 1 | . . . . . . . . 1 . . . . . . . . Repair Station Hacks 4 | . . . . . . . . . . . . . 4 . . . Scan Component 2 | . . . . . . . . . . . . . 2 . . . Repair 2 | . . . . . . . . . . . . . 2 . . . Recycling Unit Hacks 7 | . . . . . . . 3 4 . . . . . . . . Process 1 | . . . . . . . . 1 . . . . . . . . Report Inventory 4 | . . . . . . . 2 2 . . . . . . . . Retrieve Matter 1 | . . . . . . . . 1 . . . . . . . . Retrieve Components 1 | . . . . . . . 1 . . . . . . . . . Scanalyzer . | . . . . . . . . . . . . . . . . . Garrison Access Hacks 3 | . . . . . . . . . . . . 1 1 . 1 . Seal Access 3 | . . . . . . . . . . . . 1 1 . 1 . Unauthorized Hacks . | . . . . . . . . . . . . . . . . . Terminals . | . . . . . . . . . . . . . . . . . Fabricators . | . . . . . . . . . . . . . . . . . Repair Stations . | . . . . . . . . . . . . . . . . . Recycling Units . | . . . . . . . . . . . . . . . . . Scanalyzers . | . . . . . . . . . . . . . . . . . Garrison Access . | . . . . . . . . . . . . . . . . . Data Cores Recovered 3 | . . . 1 . . . 1 . . . . 1 . . . . Used 2 | . . . . . . . 1 . . . . 1 . . . . Hacking Detections 33 | . 4 . 3 . . . 2 5 . . 2 6 6 1 1 3 Full Trace Events 4 | . . . . . . . . 2 . . . 1 1 . . . Feedback Events . | . . . . . . . . . . . . . . . . . Feedback Blocked . | . . . . . . . . . . . . . . . . . Robot Schematics Acquired 3 | . . . . . . . . . . . . . . . . 3 Robots Built . | . . . . . . . . . . . . . . . . . Authchips . | . . . . . . . . . . . . . . . . . Time . | . . . . . . . . . . . . . . . . . Total Robot Build Rating . | . . . . . . . . . . . . . . . . . Part Schematics Acquired 3 | . . . . . . . . . . . . . . . . 3 Parts Built 1 | . . . . . . . . 1 . . . . . . . . Authchips . | . . . . . . . . . . . . . . . . . Time 95 | . . . . . . . . 95 . . . . . . . . Total Part Build Rating 5 | . . . . . . . . 5 . . . . . . . . Parts Repaired 2 | . . . . . . . . . . . . . 2 . . . Time 89 | . . . . . . . . . . . . . 89 . . . Parts Recycled . | . . . . . . . . . . . . . . . . . Recycled Matter 46 | . . . . . . . . 46 . . . . . . . . Retrieved Matter 46 | . . . . . . . . 46 . . . . . . . . Retrieved Components 6 | . . . . . . . 6 . . . . . . . . . Parts Scanalyzed . | . . . . . . . . . . . . . . . . . Part Schematics Acquired . | . . . . . . . . . . . . . . . . . Parts Damaged . | . . . . . . . . . . . . . . . . . Bothacking | -11 -10 -10 -9 -9 -9 -8 -8 -7 -7 -7 -6 -5 -4 -3 -2 -2 ------------ Run | Yrd Mat Min Mat Min Exi Min Mat Fac Low Low Fac Fac Fac Res Res Tes Used RIF Installer . | . . . . . . . . . . . . . . . . . Robots Hacked 1 | . . . . . . . . . 1 . . . . . . . Non-combat . | . . . . . . . . . . . . . . . . . Combat 1 | . . . . . . . . . 1 . . . . . . . Robot Hacks Applied 1 | . . . . . . . . . 1 . . . . . . . parse_system 1 | . . . . . . . . . 1 . . . . . . . Relay Couplers Released . | . . . . . . . . . . . . . . . . . Fabnet Peak Effective % . | . . . . . . . . . . . . . . . . . Robots Rewired 1 | . . . . . 1 . . . . . . . . . . . Allies Hacked . | . . . . . . . . . . . . . . . . . Hacks Repelled . | . . . . . . . . . . . . . . . . . Allies | -11 -10 -10 -9 -9 -9 -8 -8 -7 -7 -7 -6 -5 -4 -3 -2 -2 -------- Run | Yrd Mat Min Mat Min Exi Min Mat Fac Low Low Fac Fac Fac Res Res Tes Total Allies 7 | . . . . 6 1 . . . . . . . . . . . Largest Group 4 | . . . . 3 4 3 3 . . . . . . . . . Highest-Rated Group 72 | . . . . 72 48 32 32 . . . . . . . . . Highest-Rated Ally 31 | . . . . 31 16 16 16 . . . . . . . . . Total Orders . | . . . . . . . . . . . . . . . . . Ally Attacks 92 | . . . . 23 . 28 41 . . . . . . . . . Total Damage 856 | . . . . 231 . 216 409 . . . . . . . . . Kills 14 | . . . . 2 . 4 8 . . . . . . . . . Allies Corrupted . | . . . . . . . . . . . . . . . . . Allies Melted . | . . . . . . . . . . . . . . . . . Intel | -11 -10 -10 -9 -9 -9 -8 -8 -7 -7 -7 -6 -5 -4 -3 -2 -2 ------- Run | Yrd Mat Min Mat Min Exi Min Mat Fac Low Low Fac Fac Fac Res Res Tes Robot Analysis Total 2 | . . . 2 . . . . . . . . . . . . . Derelict Logs Recovered 5 | . . 2 . 1 . . . . 2 . . . . . . . Drone Launches . | . . . . . . . . . . . . . . . . . Drone Recoveries . | . . . . . . . . . . . . . . . . . Exploration | -11 -10 -10 -9 -9 -9 -8 -8 -7 -7 -7 -6 -5 -4 -3 -2 -2 ------------- Run | Yrd Mat Min Mat Min Exi Min Mat Fac Low Low Fac Fac Fac Res Res Tes Turns Passed 8916 | 85 1085 1106 531 989 711 545 696 445 499 5 297 686 400 129 336 371 Spaces Moved 8584 | 50 575 658 286 551 412 318 355 757 1109 16 463 1409 577 218 310 520 Core 83 | 18 . . . . . . . . . . . . . . . 65 Treads 3187 | 32 575 658 286 551 412 318 355 . . . . . . . . . Legs . | . . . . . . . . . . . . . . . . . Wheels . | . . . . . . . . . . . . . . . . . Hover . | . . . . . . . . . . . . . . . . . Flight 5314 | . . . . . . . . 757 1109 16 463 1409 577 218 310 455 Fastest Speed 20 | 50 160 160 160 160 160 160 160 31 31 31 28 22 20 34 34 34 Average Speed 78 | 126 160 160 161 160 160 160 160 33 32 31 34 24 29 34 34 36 Slowest Speed 240 | 160 160 160 240 160 160 160 160 34 34 31 107 27 34 34 34 50 Overloaded Moves . | . . . . . . . . . . . . . . . . . Propulsion Burnouts . | . . . . . . . . . . . . . . . . . Robots Hopped 1 | . . . . . . . . . . . . . . . . 1 Cave-ins Triggered . | . . . . . . . . . . . . . . . . . Exploration Rate (%) 42 | 4 81 98 36 79 71 76 33 16 96 6 14 36 24 9 9 39 Regions Visited 16 Branch Regions 7 Pre-discovered Areas 2 | . . 2 . . . . . . . . . . . . . . Known Exits Taken 14 | . 1 . 1 1 1 1 1 1 1 1 1 1 1 1 1 . Unknown Exits Taken 2 | 1 . 1 . . . . . . . . . . . . . . Scrap Searched 13 | . . 1 . 1 . . . . 11 . . . . . . . Spaces Dug 68 | . . . . . . . . 5 . . 5 39 10 2 3 4 Terrain Destroyed 113 | . 15 21 . . . 7 . 5 . . 5 40 11 2 3 4 Melee 46 | . . . . . . . . 5 . . 5 23 4 2 3 4 Projectile 24 | . . . . . . . . . . . . 17 7 . . . AOE 43 | . 15 21 . . . 7 . . . . . . . . . . Terrain Rammed . | . . . . . . . . . . . . . . . . . Walls Destroyed . | . . . . . . . . . . . . . . . . . Machines Disabled . | . . . . . . . . . . . . . . . . . Actions | -11 -10 -10 -9 -9 -9 -8 -8 -7 -7 -7 -6 -5 -4 -3 -2 -2 --------- Run | Yrd Mat Min Mat Min Exi Min Mat Fac Low Low Fac Fac Fac Res Res Tes Total 10151 | 64 673 688 317 598 463 341 425 937 1217 15 551 1634 770 258 531 669 Wait 857 | . 40 12 . . . 6 5 139 77 . 12 101 134 21 209 101 Move 8566 | 49 574 657 285 550 411 317 354 756 1108 15 462 1408 576 217 309 518 Hop 1 | . . . . . . . . . . . . . . . . 1 Pick Up 60 | 5 9 1 5 3 . 2 8 4 2 . 5 9 2 4 1 . Fast Attach 50 | 5 1 1 . . . . . 3 3 . 6 14 7 3 3 4 Attach 34 | 2 . . 2 3 . 1 2 7 2 . 5 4 2 1 2 1 Detach 5 | . . . . . . . . . . . . 1 3 . . 1 Swap 31 | . 5 2 4 1 2 3 6 3 3 . 1 . 1 . . . Drop 63 | . 4 . . 2 . 2 9 17 2 . 4 9 10 2 2 . Fire 209 | 3 38 13 20 33 . 8 33 . . . . 30 26 2 . 3 Melee 161 | . . . . . 6 . . 8 20 . 28 58 9 8 5 19 Ram 2 | . . . . . . . . . . . . . . . . 2 Kick . | . . . . . . . . . . . . . . . . . Crush 21 | . 2 2 1 6 . 2 8 . . . . . . . . . Escape Stasis 47 | . . . . . . . . . . . 28 . . . . 19 Rewire 44 | . . . . . 44 . . . . . . . . . . . Trap . | . . . . . . . . . . . . . . . . . Miscellaneous . | . . . . . . . . . . . . . . . . . Route ------- -11/Scrapyard -10/Materials (discovered 3 exits: *Mat x2 / *Min) -10/Mines (discovered 2 exits: *Mat x2) -9/Materials (discovered 2 exits: *Mat / *Min) -9/Mines (discovered 4 exits: *Mat x2 / *Exi / [*Zio]) -9/Exiles (discovered 2 exits: *Min x2) -8/Mines -8/Materials (discovered 3 exits: *Fac x3) -7/Factory (discovered 4 exits: *Fac / Sto / *Low x2) -7/Lower Caves -7/Lower Caves -6/Factory (discovered 2 exits: *Fac / Low) -5/Factory (discovered 5 exits: *Fac x4 / *Upp) -4/Factory (discovered 5 exits: *Res x4 / *Upp) -3/Research (discovered 3 exits: *Res x3) -2/Research -2/Testing History --------- Turn | Location | Event 6 | -11/Scrapyard | Discovered new exit (range 14) 86 | -11/Scrapyard | Entered Materials 115 | -10/Materials | Identified exit to Mines 319 | -10/Materials | Build established: Mutant 677 | -10/Materials | Discovered new exit (range 11) 918 | -10/Materials | Discovered new exit (range 8) 1171 | -10/Materials | Entered Mines 1182 | -10/Mines | Met a Derelict bent on vengeance 1344 | -10/Mines | Learned location of Zion (-7) 1482 | -10/Mines | Discovered new exit (range 5) 1611 | -10/Mines | Discovered new exit (range 13) 1631 | -10/Mines | Met a Derelict shopkeep closing up shop 1997 | -10/Mines | Received a Rocket Launcher from a helpful Derelict 2036 | -10/Mines | Learned location of Recycling (-7) 2277 | -10/Mines | Entered Materials 2277 | -9/Materials | Evolved 2 slots: Utility x2 2419 | -9/Materials | Identified exit to Mines 2567 | -9/Materials | Build established: Skirmisher 2586 | -9/Materials | Discovered new exit (range 15) 2610 | -9/Materials | Identified exit to Materials 2808 | -9/Materials | Entered Mines 2809 | -9/Mines | A Derelict revealed a hidden shortcut to a safe place 2816 | -9/Mines | Learned Materials stockpile data 2937 | -9/Mines | Met a Derelict testing a Signal Generator 2990 | -9/Mines | Found the Drone Emporium 3089 | -9/Mines | Lost 3 allies 3095 | -9/Mines | Build established: Scavenger-Skirmisher 3326 | -9/Mines | Discovered exit to Materials (range 9) 3390 | -9/Mines | Assisted by bots powering up and referring to "LRC-V3" 3415 | -9/Mines | Build established: Mutant 3548 | -9/Mines | Discovered exit to Materials (range 7) 3791 | -9/Mines | Deemed a non-threat by the Exiles lab entrance 3791 | -9/Mines | Discovered new exit (range 5) 3795 | -9/Mines | Identified exit to Exiles 3797 | -9/Mines | Entered Exiles 3797 | -9/Exiles | Found Exiles lab destroyed 3797 | -9/Exiles | Accompanied by 3 allies 3818 | -9/Exiles | Discovered new exit (range 15) 3839 | -9/Exiles | Identified exit to Mines 4486 | -9/Exiles | Discovered exit to Mines (range 10) 4508 | -9/Exiles | Entered Mines 4508 | -8/Mines | Accompanied by 4 allies 4806 | -8/Mines | Build established: Scavenger-Skirmisher 5027 | -8/Mines | Discovered exit to Materials (range 11) 5053 | -8/Mines | Entered Materials 5053 | -8/Materials | Accompanied by 3 allies 5053 | -8/Materials | Evolved 2 slots: Propulsion x1, Utility x1 5235 | -8/Materials | Identified exit to Factory 5749 | -8/Materials | Entered Factory 5749 | -7/Factory | Evolved 2 slots: Propulsion x1, Utility x1 5798 | -7/Factory | Discovered new exit (range 7) 5800 | -7/Factory | Identified exit to Factory 5827 | -7/Factory | Identified exit to Storage 5827 | -7/Factory | Identified exit to Lower Caves 5946 | -7/Factory | Fabricated Adv. Melee Analysis Suite (x1) 6194 | -7/Factory | Entered Lower Caves 6198 | -7/Lower Caves | Learned Factory security intel 6273 | -7/Lower Caves | Build established: Hacker-Scout 6323 | -7/Lower Caves | Encountered a Warlord checkpoint 6327 | -7/Lower Caves | Spotted B-75 Beast 6341 | -7/Lower Caves | Learned 8 Factory zone layouts 6669 | -7/Lower Caves | Discovered new exit (range 5) 6670 | -7/Lower Caves | Identified exit to Lower Caves 6693 | -7/Lower Caves | Entered another Lower Caves area 6696 | -7/Lower Caves | Discovered exit to Factory (range 7) 6698 | -7/Lower Caves | Entered Factory 6698 | -6/Factory | Evolved 2 slots: Utility x2 6699 | -6/Factory | Identified exit to Lower Caves 6710 | -6/Factory | Identified exit to DSF 6726 | -6/Factory | Discovered new exit (range 6) 6727 | -6/Factory | Identified exit to Factory 6854 | -6/Factory | Lost 4 parts (1n2u1w) 6870 | -6/Factory | Spotted B-75 Beast 6994 | -6/Factory | Lost 4 parts (1p2n1w) 6995 | -6/Factory | Entered another Factory area 6995 | -5/Factory | Evolved 2 slots: Power x1, Propulsion x1 7157 | -5/Factory | Identified exit to Factory 7257 | -5/Factory | Build established: Hacker-Sprinter 7626 | -5/Factory | Discovered new exit (range 9) 7628 | -5/Factory | Identified exit to Upper Caves 7681 | -5/Factory | Entered another Factory area 7681 | -4/Factory | Evolved 2 slots: Power x1, Propulsion x1 7749 | -4/Factory | Repaired Imp. Flight Unit 7788 | -4/Factory | Repaired Lgt. Nuclear Core 7926 | -4/Factory | Discovered new exit (range 22) 7933 | -4/Factory | Identified exit to Upper Caves 8039 | -4/Factory | Identified exit to Research 8081 | -4/Factory | Entered Research 8081 | -3/Research | Evolved 2 slots: Utility x2 8178 | -3/Research | Identified exit to Research 8210 | -3/Research | Entered another Research area 8210 | -2/Research | Evolved 2 slots: Utility x2 8271 | -2/Research | Discovered new exit (range 16) 8359 | -2/Research | Build established: Hacker-Ninja 8540 | -2/Research | Identified exit to Testing 8546 | -2/Research | Entered Testing 8577 | -2/Testing | Spotted PD-04XTTFRNA9 8633 | -2/Testing | Scanned by Researcher 8671 | -2/Testing | Found Prototype Processor 8671 | -2/Testing | Identified Spectral Analyzer 8862 | -2/Testing | Released all parts (11) 8892 | -2/Testing | Core integrity fell below 50% 8893 | -2/Testing | Lost 8 parts (2p1n3u2w) 8900 | -2/Testing | Core integrity fell below 20% 8917 | -2/Testing | Destroyed by S-43 Plague with Heavy Machine Gun Last Messages --------------- 08892_ Held in stasis. 08892_ C-65 Expert is analyzing... 08893_ Penetrated by Slug. 08896_ Slug penetrates Wall. 08896_ Penetrated by Slug. 08896_ Held in stasis. 08896_ C-65 Expert is analyzing... 08896_ Penetrated by Slug. 08896_ Slug penetrates Wall. 08897_ Penetrated by Slug. 08900_ Held in stasis. 08900_ C-65 Expert is analyzing... 08902_ Slug penetrates Wall. 08902_ ALERT: Hostiles spotted, dispatching reinforcements to Terminal T007. 08902_ Slug penetrates Wall. 08902_ Penetrated by Slug. 08913_ K-01 Serf cleans the Terminal. 08914_ Penetrated by Slug. [Achievement: Achiever] Map ----- +----------------------------------------------------+ | +#?????# """ ## #?? ???####/##### ????? | | #?????# """ ## ##? ???# ! # #?????? | | #?????# """ #] ###+#+##??# # #?????? | | ####### # % #### # # | | # # %/% / + | | # #! ] ##### #### # # """ | | ####/########???# #??# # #?"""?? | | + """S"""?# #??# # #?"""?? | | ^ ##?"""?"""?+ #??# # #?????? | | #?????? ???# #??# # #""???? | | ########## #??????????# ############# #"T???? | | ?????????# #??"""?"""?# #""???? | | #?????#?? +?"""?"""?# ###### #?????? | | T"""????? #?"""?"""?# s#????# #?????? | | ?"""????? #?????????#c #????# #?????? | | ????????# #?????????#n #????#############?????? | | ????? ?# #?????????# s#??????????????????????? | | ??????? # #?????????#s #??????????????????????? | | ?? ?????# #??########ns#??????????????????????? | | ??????? # """T""" #??????????????????????? | | "?""""??+ k #??????????????????????? | | "?""""? # """?""" """ #??????????????????????? | | "?""""??# """?""" """ #??????????????????????? | | "?""""??# """ """ """ #??????????????????????? | | ????????# c #??????????????????????? | | ######### @#??????????????????????? | | ########### #??????????????????????? | | #?????????# #??????????????????????? | | #?????#???# #??????????????????????? | | #?????????# +??????????????????????? | | ######### #?"""?"""?# #??????????????????????? | | ##??# #?"""?"""?# #??????????????????????? | | #???# #?"""?"""?# #??????????????????????? | | """ #???# #??? ?? ??# #??????????????????????? | | "" #?#?# #? ??? ?? # ???????????????????????? | | """ #???# #?? ?????# ???????????????????????? | | """ #???# #???? ????+ ???????????????????????? | | #??## #?????????# ???????????????????????? | | "######## ########### ?????????? ???????????? | | # # # ?? ?? ??#???"""????????? | | """ # # # ?????????????T"????????? | | """ # # #??#?????????? """????????? | | """ # |# ! #? #????"?????????????????? | | """ / +! #? +???????#??#???????????? | | """ # #! # #??????????????????????? | | """ # # ] # #??##??????????????????? | | """ # # / #?????#????????????????? | | # ########### #??????? ? ????????????? | | +######## #?#?###???? #??????"??????????????? | | #??????# #?#????#???? #?????????????????????? | +----------------------------------------------------+ Best States ------------- Heat Dissipation 87 Energy Generation 40 Energy Capacity 260 Matter Stores 300 Matter Capacity 300 Sight Range 22 Robot Scan Range 16 Terrain Scan Range 24 Terrain Scan Density 10 ECM Strength 2 Jamming Range 14 Additional Mass Support 9 Armor Coverage 150 Resistance: KI 45 Resistance: TH 20 Resistance: EX 20 Resistance: EM 20 Resistance: I 20 Resistance: S 20 Resistance: P 20 Evasion (%) 65 Melee Accuracy 8 Recoil Reduction 3 Offensive Hacking 40 Item Schematics ----------------- Mni. Smartbomb Launcher | -2/Testing | Archive Exp. Reaction Control System | -2/Testing | Archive Imp. Thermal Defense Suite | -2/Testing | Archive Robot Schematics ------------------ C-57 Dissector | -2/Testing | Archive A-27 Freighter | -2/Testing | Archive A-02 Transporter | -2/Testing | Archive Fabricated ------------ Adv. Melee Analysis Suite | x1 | -7/Factory | Preloaded Alien Tech Used ----------------- None Achievements -------------- Achiever Can't Catch Me Dynamic Key Challenges ------------ None Game ------ Seed ThermalGlidesysCharger Manual? 0 Play Time 02:35:08 Cumulative 25.0 hours Start 2024.08.01 @ 22:30:18 End 2024.08.05 @ 17:17:48 Sessions 7 Manual Loads 0 Difficulty Adventurer Special Mode None Game No. 13 Rogue 0 Adventurer 9 Explorer 4 Win Type - Total 0 Types 0/0/0/0/0/0/0/0/0 Lore% 15 Gallery% 24 Achievement% 25 Wizard Run 0 Options --------- Layout 0 ASCII 0 Keyboard 0 Movement Numpad Keybinds 0 Fullscreen 1 Font 18/SmallcapsGlow Map View 76x50 Zoom Use 0% Tactical HUD 1 Map Filters NONE Filters NONE Steam 1 RUN: 32a7730c-4b9e-4577-b38c-688ccebd9934